fUST/lending_fUST_20260107
["ID","MTS","AMOUNT","RATE_DAILY","PERIOD"]
[400591232,1767736241845,-550.64,0.00022,2]
[400591234,1767736241854,-2846.21,0.00022,7]
[400591236,1767736241864,-632.0,0.00022014,2]
[400591238,1767736241873,-195.0,0.00022055,6]
[400591240,1767736241883,-632.0,0.0002208,2]
[400591242,1767736241893,-632.0,0.00022118,2]
[400591244,1767736241902,-3572.77709256,0.00022175,2]
[400591247,1767736241911,-22465.31,0.000222,2]
[400591248,1767736241920,-300.0,0.00022466,2]
[400591250,1767736241929,-2000.0,0.00022521,7]
[400591253,1767736241940,-450.0,0.00023014,2]
[400591254,1767736241950,-500.0,0.00023144,2]
[400591257,1767736241960,-2200.0,0.00023157,2]
[400591258,1767736241969,-254.5,0.00023163,2]
[400591261,1767736241980,-2052.87792676,0.0002321,17]
[400591262,1767736241990,-500.0,0.00023268,2]
[400591264,1767736241999,-2200.0,0.00023364,2]
[400591267,1767736242009,-2200.0,0.0002338,2]
[400591269,1767736242020,-2000.0,0.00023395,7]
[400591271,1767736242029,-600.0,0.00023562,2]
[400591272,1767736242038,-501.99551122,0.00023676,2]
[400591274,1767736242047,-7376.3163791,0.00023767,2]
[400591277,1767736242057,-2200.0,0.00023785,2]
[400591279,1767736242070,-240.04,0.000238,7]
[400591281,1767736242079,-284.75,0.000238,7]
[400591283,1767736242088,-2200.0,0.00023808,2]
[400591284,1767736242098,-500.0,0.00023889,2]
[400591287,1767736242107,-1000.0,0.00023982,10]
[400591288,1767736242117,-791.0,0.00023982,10]
[400591290,1767736242127,-500.0,0.00024065,2]
[400591292,1767736242136,-750.0,0.0002411,2]
[400591294,1767736242146,-500.0,0.00024193,2]
[400591296,1767736242155,-2846.21,0.000242,7]
[400591298,1767736242164,-1041.66666667,0.000242,7]
[400591300,1767736242174,-197.0,0.00024247,12]
[400591302,1767736242183,-2000.0,0.00024269,7]
[400591304,1767736242193,-500.0,0.00024331,2]
[400591306,1767736242203,-15905.50371464,0.000246,3]
[400591309,1767736242214,-1041.66666667,0.000246,3]
[400591311,1767736242223,-2361.20688811,0.0002463,20]
[400591313,1767736242232,-900.0,0.00024658,2]
[400591315,1767736242242,-500.0,0.00024658,2]
[400591317,1767736242251,-195.05,0.00024661,2]
[400591319,1767736242260,-3572.77709256,0.000247,2]
[400591321,1767736242272,-9931.15793161,0.000247,2]
[400591323,1767736242281,-254.5,0.00024768,2]
[400591325,1767736242291,-500.0,0.00024795,2]
[400591327,1767736242300,-22465.31,0.000248,2]
[400591329,1767736242309,-300.0,0.000248,2]
[400591331,1767736242319,-191.004961,0.000248,7]
[400591333,1767736242332,-151.0,0.000248,7]
[400591335,1767736242342,-151.0,0.000248,7]
[400591337,1767736242351,-151.0,0.000248,7]
[400591338,1767736242361,-221.765393,0.000248,7]
[400591340,1767736242370,-151.0,0.000248,7]
[400591342,1767736242380,-151.0,0.000248,7]
[400591344,1767736242389,-164.05427,0.000248,7]
[400591346,1767736242398,-409.331105,0.000248,7]
[400591348,1767736242407,-409.331105,0.000248,7]
[400591350,1767736242416,-409.331105,0.000248,7]
[400591353,1767736242426,-409.331105,0.000248,7]
[400591355,1767736242435,-500.0,0.000248,7]
[400591357,1767736242444,-500.0,0.000248,7]
[400591359,1767736242454,-500.0,0.000248,7]
[400591361,1767736242463,-500.0,0.000248,7]
[400591363,1767736242474,-363.862086,0.000248,7]
[400591365,1767736242484,-363.862086,0.000248,7]
[400591367,1767736242493,-363.862086,0.000248,7]
[400591369,1767736242503,-363.862086,0.000248,7]
[400591371,1767736242512,-151.0,0.000248,7]
[400591373,1767736242522,-178.486087,0.000248,7]
[400591375,1767736242531,-151.0,0.000248,7]
[400591377,1767736242541,-178.486087,0.000248,7]
[400591379,1767736242550,-151.0,0.000248,7]
[400591381,1767736242559,-178.486087,0.000248,7]
[400591383,1767736242568,-178.486087,0.000248,7]
[400591385,1767736242577,-151.0,0.000248,7]
[400591387,1767736242586,-151.0,0.000248,7]
[400591389,1767736242596,-151.0,0.000248,7]
[400591391,1767736242605,-151.0,0.000248,7]
[400591393,1767736242614,-182.954816,0.000248,7]
[400591395,1767736242624,-151.0,0.000248,7]
[400591397,1767736242633,-153.743312,0.000248,7]
[400591399,1767736242642,-153.789809,0.000248,7]
[400591401,1767736242652,-746.767727,0.000248,7]
[400591403,1767736242662,-746.767727,0.000248,7]
[400591405,1767736242671,-746.767727,0.000248,7]
[400591407,1767736242681,-746.767727,0.000248,7]
[400591409,1767736242690,-2200.0,0.00024846,2]
[400591411,1767736242699,-2200.0,0.00024883,2]
[400591413,1767736242710,-550.64,0.000249,2]
[400591415,1767736242719,-151.0,0.000249,7]
[400591418,1767736242729,-262.607866,0.000249,7]
[400591420,1767736242738,-151.0,0.000249,7]
[400591422,1767736242748,-155.649023,0.000249,7]
[400591424,1767736242757,-151.0,0.000249,7]
[400591426,1767736242766,-152.72294,0.000249,7]
[400591427,1767736242776,-151.0,0.000249,7]
[400591429,1767736242786,-151.0,0.000249,7]
[400591432,1767736242796,-151.0,0.000249,7]
[400591434,1767736242805,-151.0,0.000249,7]
[400591436,1767736242814,-151.084014,0.000249,7]
[400591438,1767736242823,-151.0,0.000249,7]
[400591440,1767736242833,-151.0,0.000249,7]
[400591442,1767736242842,-194.712966,0.000249,7]
[400591444,1767736242852,-194.712966,0.000249,7]
[400591446,1767736242861,-194.712966,0.000249,7]
[400591448,1767736242870,-194.712966,0.000249,7]
[400591450,1767736242880,-151.0,0.000249,7]
[400591452,1767736242889,-151.0,0.000249,7]
[400591454,1767736242898,-151.0,0.000249,7]
[400591456,1767736242908,-151.0,0.000249,7]
[400591458,1767736242917,-151.0,0.000249,7]
[400591460,1767736242926,-409.331105,0.000249,7]
[400591462,1767736242936,-409.331105,0.000249,7]
[400591464,1767736242948,-409.331105,0.000249,7]
[400591466,1767736242957,-409.331105,0.000249,7]
[400591468,1767736242967,-500.0,0.000249,7]
[400591470,1767736242976,-500.0,0.000249,7]
[400591472,1767736242986,-500.0,0.000249,7]
[400591474,1767736242995,-500.0,0.000249,7]
[400591476,1767736243004,-363.862086,0.000249,7]
[400591478,1767736243014,-363.862086,0.000249,7]
[400591480,1767736243024,-363.862086,0.000249,7]
[400591482,1767736243034,-363.862086,0.000249,7]
[400591484,1767736243043,-151.0,0.000249,7]
[400591486,1767736243053,-178.486087,0.000249,7]
[400591488,1767736243062,-151.0,0.000249,7]
[400591490,1767736243071,-178.486087,0.000249,7]
[400591492,1767736243080,-151.0,0.000249,7]
[400591494,1767736243090,-178.486087,0.000249,7]
[400591496,1767736243099,-178.486087,0.000249,7]
[400591498,1767736243108,-155.50541,0.000249,7]
[400591500,1767736243117,-151.0,0.000249,7]
[400591502,1767736243126,-151.0,0.000249,7]
[400591504,1767736243136,-151.0,0.000249,7]
[400591506,1767736243145,-258.528484,0.000249,7]
[400591508,1767736243154,-631081.21536,0.000249,2]
[400591510,1767736243163,-176.133271,0.000249,7]
[400591512,1767736243172,-151.0,0.000249,7]
[400591514,1767736243181,-151.0,0.000249,7]
[400591516,1767736243191,-151.893811,0.000249,7]
[400591518,1767736243200,-5000.0,0.000249,7]
[400591520,1767736243210,-5000.0,0.000249,7]
[400591522,1767736243219,-176.786529,0.000249,7]
[400591524,1767736243228,-5000.0,0.000249,7]
[400591526,1767736243238,-176.786529,0.000249,7]
[400591528,1767736243247,-5000.0,0.000249,7]
[400591530,1767736243256,-176.786529,0.000249,7]
[400591532,1767736243265,-176.786529,0.000249,7]
[400591534,1767736243274,-151.0,0.000249,7]
[400591536,1767736243284,-151.0,0.000249,7]
[400591538,1767736243293,-151.0,0.000249,7]
[400591540,1767736243302,-151.0,0.000249,7]
[400591542,1767736243312,-156.236454,0.000249,7]
[400591544,1767736243321,-264.296067,0.000249,7]
[400591545,1767736243330,-151.0,0.000249,7]
[400591546,1767736243339,-151.0,0.000249,7]
[400591547,1767736243348,-151.0,0.000249,7]
[400591548,1767736243357,-151.0,0.000249,7]
[400591549,1767736243366,-220.68224,0.000249,7]
[400591550,1767736243374,-151.0,0.000249,7]
[400591551,1767736243383,-151.0,0.000249,7]
[400591552,1767736243392,-220.68224,0.000249,7]
[400591553,1767736243401,-151.0,0.000249,7]
[400591554,1767736243410,-224.055312,0.000249,7]
[400591555,1767736243419,-220.68224,0.000249,7]
[400591556,1767736243428,-500.0,0.00024932,2]
[400591557,1767736243437,-500.0,0.00025069,2]
[400591558,1767736243446,-2000.0,0.00025143,7]
[400591559,1767736243455,-250.0,0.00025205,2]
[400591561,1767736243464,-880.39814706,0.00025205,2]
[400591562,1767736243473,-500.0,0.00025206,2]
[400591564,1767736243482,-500.0,0.00025208,7]
[400591566,1767736243491,-500.0,0.00025343,2]
[400591568,1767736243501,-2200.0,0.00025443,7]
[400591570,1767736243510,-4011.29300342,0.00025471,2]
[400591572,1767736243519,-500.0,0.0002548,2]
[400591574,1767736243529,-2846.21,0.000256,7]
[400591576,1767736243538,-500.0,0.00025617,2]
[400591578,1767736243547,-545.43743047,0.00025676,2]
[400591581,1767736243557,-240.04,0.000257,7]
[400591584,1767736243566,-284.75,0.000257,7]
[400591586,1767736243575,-2200.0,0.00025752,7]
[400591588,1767736243584,-350.0,0.00025753,2]
[400591590,1767736243593,-500.0,0.00025754,2]
[400591592,1767736243602,-500.0,0.00025863,7]
[400591594,1767736243611,-504.0,0.00025891,2]
[400591596,1767736243619,-2200.0,0.00025947,7]
[400591598,1767736243628,-2612.25,0.00026,14]
[400591600,1767736243637,-1020.73276343,0.00026,2]
[400591602,1767736243646,-1564.1243201,0.00026009,2]
[400591604,1767736243656,-2000.0,0.00026017,7]
[400591606,1767736243665,-500.0,0.00026033,7]
[400591608,1767736243674,-2679.11903508,0.0002605,23]
[400591610,1767736243683,-2200.0,0.00026051,7]
[400591612,1767736243693,-2200.0,0.00026074,7]
[400591614,1767736243703,-9931.15793158,0.000261,2]
[400591616,1767736243714,-2200.0,0.00026104,7]
[400591618,1767736243723,-500.0,0.00026122,7]
[400591620,1767736243732,-2200.0,0.00026162,7]
[400591622,1767736243741,-2200.0,0.00026184,7]
[400591624,1767736243751,-450.0,0.00026301,2]
[400591626,1767736243760,-500.0,0.00026315,7]
[400591628,1767736243769,-2200.0,0.00026326,7]
[400591630,1767736243779,-2200.0,0.00026355,7]
[400591632,1767736243788,-254.5,0.00026372,2]
[400591634,1767736243797,-1000.0,0.0002638,30]
[400591636,1767736243806,-1000.0,0.0002638,30]
[400591638,1767736243815,-162.0,0.00026438,20]
[400591640,1767736243824,-22465.31,0.000265,2]
[400591642,1767736243834,-500.0,0.00026501,7]
[400591644,1767736243843,-188.11386458,0.00026587,2]
[400591646,1767736243852,-550.64,0.000267,2]
[400591648,1767736243861,-2200.0,0.00026739,7]
[400591650,1767736243870,-2200.0,0.00026754,7]
[400591652,1767736243879,-500.0,0.0002681,7]
[400591654,1767736243888,-1525.89485639,0.00026812,2]
[400591656,1767736243898,-6097.47584613,0.00026812,2]
[400591658,1767736243907,-500.0,0.00026825,7]
[400591660,1767736243916,-550.0,0.00026849,2]
[400591662,1767736243925,-2200.0,0.00026858,7]
[400591664,1767736243934,-2000.0,0.00026891,7]
[400591666,1767736243946,-2200.0,0.00026922,7]
[400591669,1767736243955,-184.0,0.00027,7]
[400591670,1767736243964,-1019.0,0.00027,2]
[400591673,1767736243974,-10000.0,0.00027031,24]
[400591675,1767736243983,-2344.99085773,0.00027112,2]
[400591677,1767736243993,-500.0,0.00027126,7]
[400591678,1767736244002,-7376.3163791,0.0002715,2]
[400591680,1767736244011,-500.0,0.00027155,7]
[400591682,1767736244021,-2846.21,0.000272,7]
[400591684,1767736244031,-2344.99085773,0.00027257,2]
[400591686,1767736244040,-628.0,0.00027315,2]
[400591688,1767736244049,-2145.0,0.00027315,2]
[400591690,1767736244059,-587.58501506,0.00027356,7]
[400591692,1767736244070,-500.0,0.00027359,7]
[400591694,1767736244079,-1749.78,0.00027397,2]
[400591696,1767736244089,-223.81332617,0.00027397,2]
[400591709,1767736244201,-156.66932831,0.00027397,2]
[400591711,1767736244212,-650.0,0.00027397,5]
[400591713,1767736244221,-153.720433,0.00027397,7]
[400591715,1767736244230,-500.0,0.00027397,5]
[400591717,1767736244239,-514.72943371,0.00027397,5]
[400591719,1767736244248,-2200.0,0.00027401,7]
[400591721,1767736244257,-3005.90739991,0.00027469,25]
[400591723,1767736244266,-9931.15793158,0.000275,2]
[400591725,1767736244275,-2344.99085773,0.00027608,2]
[400591727,1767736244284,-2200.0,0.00027673,7]
[400591729,1767736244294,-588.87934971,0.00027676,2]
[400591731,1767736244303,-2000.0,0.00027765,7]
[400591733,1767736244312,-936.35617406,0.00027822,2]
[400591735,1767736244321,-3741.67927154,0.00027822,2]
[400591737,1767736244331,-2344.99085773,0.00027823,2]
[400591739,1767736244340,-2200.0,0.00027869,7]
[400591741,1767736244350,-240.04,0.000279,7]
[400591743,1767736244359,-284.75,0.000279,7]
[400591745,1767736244368,-1000.0,0.00027945,5]
[400591747,1767736244377,-750.0,0.00027945,5]
[400591749,1767736244386,-250.0,0.00027945,5]
[400591751,1767736244395,-250.0,0.00027945,5]
[400591753,1767736244405,-254.5,0.00027977,3]
[400591755,1767736244414,-1019.0,0.00028,2]
[400591757,1767736244423,-2344.99085773,0.00028021,2]
[400591759,1767736244433,-212.0,0.00028082,27]
[400591761,1767736244441,-279.35774616,0.00028093,7]
[400591763,1767736244450,-10000.0,0.00028109,27]
[400591765,1767736244461,-2344.99085773,0.00028389,2]
[400591767,1767736244470,-652.74210409,0.00028408,2]
[400591769,1767736244479,-2610.96841637,0.00028408,2]
[400591771,1767736244489,-5874.67893683,0.00028408,2]
[400591773,1767736244498,-425.2618805,0.00028408,2]
[400591775,1767736244508,-1701.04752202,0.00028408,2]
[400591777,1767736244517,-3615.86781133,0.00028428,4]
[400591780,1767736244527,-157.17127242,0.00028431,5]
[400591782,1767736244536,-2200.0,0.00028439,7]
[400591784,1767736244546,-2200.0,0.00028441,7]
[400591786,1767736244554,-850.0,0.00028493,5]
[400591788,1767736244563,-1344.52633851,0.00028493,5]
[400591790,1767736244572,-350.0,0.00028493,5]
[400591792,1767736244582,-350.0,0.00028493,5]
[400591794,1767736244591,-550.64,0.000285,2]
[400591796,1767736244601,-22465.31,0.000285,2]
[400591798,1767736244610,-500.0,0.00028542,7]
[400591800,1767736244619,-2200.0,0.00028556,7]
[400591802,1767736244629,-2000.0,0.00028639,7]
[400591804,1767736244638,-500.0,0.00028669,7]
[400591806,1767736244647,-2846.21,0.000287,7]
[400591808,1767736244657,-800.0,0.00028725,2]
[400591810,1767736244666,-10000.0,0.00028759,20]
[400591812,1767736244675,-2344.99085773,0.00028763,2]
[400591814,1767736244684,-10000.0,0.00028766,4]
[400591816,1767736244693,-1749.78,0.00028767,4]
[400591818,1767736244702,-3340.97782651,0.00028889,28]
[400591820,1767736244712,-9931.15793158,0.00028899,2]
[400591822,1767736244722,-2612.25,0.000289,14]
[400591823,1767736244731,-703.0,0.00029,5]
[400591825,1767736244740,-1019.0,0.00029,2]
[400591828,1767736244750,-2344.99085773,0.00029012,2]
[400591829,1767736244759,-1000.0,0.00029018,30]
[400591831,1767736244768,-1000.0,0.00029018,30]
[400591833,1767736244778,-579.0,0.00029018,30]
[400591835,1767736244788,-195.05,0.00029041,2]
[400591838,1767736244797,-950.0,0.00029041,5]
[400591840,1767736244807,-450.0,0.00029041,5]
[400591842,1767736244816,-450.0,0.00029041,5]
[400591844,1767736244825,-800.0,0.00029058,2]
[400591846,1767736244835,-500.0,0.00029089,7]
[400591848,1767736244844,-786.19843455,0.0002912,4]
[400591850,1767736244853,-3144.79373818,0.0002912,4]
[400591851,1767736244862,-800.0,0.00029128,2]
[400591853,1767736244872,-500.0,0.00029135,7]
[400591855,1767736244882,-2344.99085773,0.00029156,2]
[400591857,1767736244891,-2200.0,0.00029225,7]
[400591859,1767736244901,-2030.296672,0.00029232,2]
[400591861,1767736244910,-995.3526357,0.00029282,7]
[400591863,1767736244919,-2105.41764886,0.00029287,2]
[400591865,1767736244928,-166.93936475,0.00029305,2]
[400591867,1767736244938,-157.17127242,0.0002931,5]
[400591869,1767736244952,-800.0,0.00029324,2]
[400591872,1767736244962,-800.0,0.00029335,2]
[400591874,1767736244971,-2183.31810187,0.00029342,2]
[400591876,1767736244980,-4296.11814957,0.00029359,4]
[400591877,1767736244991,-800.0,0.00029362,2]
[400591879,1767736245000,-800.0,0.00029378,2]
[400591882,1767736245010,-2264.10087164,0.00029397,2]
[400591883,1767736245020,-2344.99085773,0.00029429,2]
[400591885,1767736245030,-2018.61215787,0.00029452,2]
[400591887,1767736245039,-240.04,0.000295,7]
[400591890,1767736245048,-284.75,0.000295,7]
[400591892,1767736245058,-10000.0,0.00029511,3]
[400591894,1767736245067,-2000.0,0.00029513,7]
[400591896,1767736245077,-3164.20106546,0.00029526,7]
[400591898,1767736245087,-254.5,0.00029581,3]
[400591900,1767736245096,-1050.0,0.00029589,5]
[400591902,1767736245105,-550.0,0.00029589,5]
[400591904,1767736245115,-550.0,0.00029589,5]
[400591906,1767736245124,-2344.99085773,0.00029615,2]
[400591908,1767736245134,-800.0,0.00029623,2]
[400591910,1767736245144,-632.32126895,0.00029676,2]
[400591912,1767736245153,-2000.0,0.00029691,10]
[400591914,1767736245162,-2000.0,0.000297,10]
[400591916,1767736245171,-2000.0,0.00029709,10]
[400591918,1767736245180,-2000.0,0.00029709,10]
[400591920,1767736245190,-800.0,0.00029746,2]
[400591922,1767736245199,-800.0,0.00029846,2]
[400591924,1767736245209,-6804.19008806,0.00029903,2]
[400591926,1767736245218,-10631.5470126,0.00029903,2]
[400591928,1767736245227,-10000.0,0.00029999,30]
[400591930,1767736245238,-1041.66666667,0.0003,10]
[400591932,1767736245247,-1000.0,0.0003,14]
[400591934,1767736245256,-166.0,0.0003,14]
[400591936,1767736245266,-1019.0,0.0003,7]
[400591938,1767736245275,-507.0,0.0003,14]
[400591940,1767736245284,-1041.66666667,0.0003,30]
[400591942,1767736245293,-151.0,0.0003,14]
[400591944,1767736245302,-1000.0,0.00030022,14]
[400591946,1767736245312,-1000.0,0.00030045,14]
[400591948,1767736245321,-2344.99085783,0.00030056,2]
[400591950,1767736245330,-1000.0,0.00030067,14]
[400591952,1767736245339,-1000.0,0.00030089,14]
[400591954,1767736245348,-10000.0,0.00030099,7]
[400591956,1767736245356,-22465.31,0.000301,2]
[400591958,1767736245366,-2874.83428113,0.000301,7]
[400591960,1767736245375,-2846.21,0.000301,7]
[400591962,1767736245384,-151.0,0.000301,7]
[400591965,1767736245393,-151.0,0.000301,7]
[400591967,1767736245403,-151.0,0.000301,7]
[400591969,1767736245412,-151.0,0.000301,7]
[400591972,1767736245422,-220.68224,0.000301,7]
[400591975,1767736245431,-151.0,0.000301,7]
[400591978,1767736245440,-151.0,0.000301,7]
[400591981,1767736245450,-220.68224,0.000301,7]
[400591982,1767736245459,-151.0,0.000301,7]
[400591983,1767736245468,-1000.0,0.00030111,14]
[400591984,1767736245477,-10000.0,0.00030123,10]
[400591985,1767736245486,-1000.0,0.00030134,14]
[400591986,1767736245495,-10000.0,0.00030135,6]
[400591987,1767736245504,-10000.0,0.00030135,30]
[400591988,1767736245513,-151.0,0.00030136,7]
[400591989,1767736245524,-151.0,0.00030136,7]
[400591990,1767736245533,-151.0,0.00030136,7]
[400591991,1767736245542,-151.0,0.00030136,7]
[400591992,1767736245551,-151.0,0.00030136,7]
[400591993,1767736245560,-151.0,0.00030136,7]
[400591994,1767736245569,-166.442051,0.00030136,7]
[400591995,1767736245579,-166.442051,0.00030136,7]
[400591997,1767736245588,-166.442051,0.00030136,7]
[400591999,1767736245597,-166.442051,0.00030136,7]
[400592001,1767736245606,-158.624878,0.00030136,7]
[400592003,1767736245615,-151.0,0.00030136,7]
[400592005,1767736245625,-151.0,0.00030136,7]
[400592007,1767736245634,-160.0,0.00030136,5]
[400592009,1767736245644,-160.0,0.00030136,5]
[400592011,1767736245653,-152.35382253,0.00030136,5]
[400592013,1767736245663,-187.78006525,0.00030136,5]
[400592015,1767736245672,-161.9011013,0.00030136,5]
[400592017,1767736245681,-255.24985543,0.00030136,5]
[400592019,1767736245691,-151.0,0.00030136,5]
[400592021,1767736245699,-151.0,0.00030136,5]
[400592023,1767736245709,-196.9088468,0.00030136,5]
[400592025,1767736245718,-151.0,0.00030136,5]
[400592027,1767736245728,-514.84070869,0.00030136,5]
[400592029,1767736245738,-533.88981491,0.00030136,5]
[400592031,1767736245747,-553.64373807,0.00030136,5]
[400592032,1767736245756,-574.12855637,0.00030136,5]
[400592035,1767736245766,-595.37131296,0.00030136,5]
[400592037,1767736245775,-617.40005154,0.00030136,5]
[400592038,1767736245784,-640.24385345,0.00030136,5]
[400592040,1767736245793,-250.0,0.00030136,5]
[400592042,1767736245803,-663.93287602,0.00030136,5]
[400592044,1767736245811,-250.0,0.00030136,5]
[400592046,1767736245820,-688.49839244,0.00030136,5]
[400592048,1767736245830,-250.0,0.00030136,5]
[400592050,1767736245839,-713.97283296,0.00030136,5]
[400592052,1767736245848,-250.0,0.00030136,5]
[400592054,1767736245857,-740.38982778,0.00030136,5]
[400592056,1767736245866,-250.0,0.00030136,5]
[400592058,1767736245876,-767.7842514,0.00030136,5]
[400592060,1767736245885,-250.0,0.00030136,5]
[400592063,1767736245895,-796.19226871,0.00030136,5]
[400592065,1767736245904,-250.0,0.00030136,5]
[400592067,1767736245913,-825.65138265,0.00030136,5]
[400592068,1767736245922,-250.0,0.00030136,5]
[400592071,1767736245932,-250.0,0.00030136,5]
[400592072,1767736245943,-250.0,0.00030136,5]
[400592074,1767736245954,-250.0,0.00030136,5]
[400592076,1767736245964,-250.0,0.00030136,5]
[400592079,1767736245974,-346.46908048,0.00030136,5]
[400592080,1767736245983,-500.0,0.00030136,5]
[400592082,1767736245994,-500.0,0.00030136,5]
[400592085,1767736246005,-500.0,0.00030136,5]
[400592087,1767736246014,-500.0,0.00030136,5]
[400592089,1767736246024,-500.0,0.00030136,5]
[400592092,1767736246033,-572.67465822,0.00030136,5]
[400592095,1767736246043,-500.0,0.00030136,5]
[400592098,1767736246052,-250.0,0.00030136,5]
[400592100,1767736246061,-250.0,0.00030136,5]
[400592102,1767736246070,-500.0,0.00030136,5]
[400592104,1767736246079,-250.0,0.00030136,5]
[400592106,1767736246092,-500.0,0.00030136,5]
[400592108,1767736246101,-250.0,0.00030136,5]
[400592110,1767736246111,-250.0,0.00030136,5]
[400592112,1767736246120,-500.0,0.00030136,5]
[400592114,1767736246128,-500.0,0.00030136,5]
[400592116,1767736246137,-500.0,0.00030136,5]
[400592118,1767736246146,-500.0,0.00030136,5]
[400592120,1767736246155,-500.0,0.00030136,5]
[400592123,1767736246165,-500.0,0.00030136,5]
[400592124,1767736246174,-500.0,0.00030136,5]
[400592126,1767736246183,-500.0,0.00030136,5]
[400592128,1767736246192,-500.0,0.00030136,5]
[400592131,1767736246201,-500.0,0.00030136,5]
[400592132,1767736246210,-500.0,0.00030136,5]
[400592134,1767736246219,-265.97969829,0.00030136,5]
[400592137,1767736246228,-1749.78,0.00030136,6]
[400592138,1767736246238,-10000.0,0.00030136,5]
[400592140,1767736246248,-10000.0,0.00030136,30]
[400592143,1767736246257,-746.767727,0.00030136,7]
[400592144,1767736246266,-151.0,0.00030136,7]
[400592147,1767736246277,-746.767727,0.00030136,7]
[400592148,1767736246286,-746.767727,0.00030136,7]
[400592150,1767736246295,-746.767727,0.00030136,7]
[400592153,1767736246304,-286.600994,0.00030136,7]
[400592154,1767736246315,-5000.0,0.00030136,7]
[400592156,1767736246325,-5000.0,0.00030136,7]
[400592158,1767736246335,-176.786529,0.00030136,7]
[400592160,1767736246344,-5000.0,0.00030136,7]
[400592162,1767736246354,-176.786529,0.00030136,7]
[400592165,1767736246364,-5000.0,0.00030136,7]
[400592167,1767736246373,-176.786529,0.00030136,7]
[400592169,1767736246382,-176.786529,0.00030136,7]
[400592171,1767736246392,-162.040453,0.00030136,7]
[400592173,1767736246401,-2487.15318209,0.00030136,5]
[400592174,1767736246409,-2579.17784983,0.00030136,5]
[400592176,1767736246419,-2674.60743027,0.00030136,5]
[400592179,1767736246428,-2773.56790519,0.00030136,5]
[400592181,1767736246438,-151.0,0.00030136,7]
[400592182,1767736246447,-2876.18991768,0.00030136,5]
[400592184,1767736246456,-2982.60894464,0.00030136,5]
[400592186,1767736246466,-3092.96547559,0.00030136,5]
[400592188,1767736246475,-151.0,0.00030136,7]
[400592191,1767736246485,-3207.40519818,0.00030136,5]
[400592193,1767736246494,-3326.07919052,0.00030136,5]
[400592195,1767736246503,-3449.14412057,0.00030136,5]
[400592196,1767736246512,-3576.76245303,0.00030136,5]
[400592198,1767736246521,-151.0,0.00030136,7]
[400592200,1767736246531,-3709.10266379,0.00030136,5]
[400592202,1767736246541,-3846.33946235,0.00030136,5]
[400592205,1767736246551,-1150.0,0.00030137,5]
[400592206,1767736246560,-650.0,0.00030137,5]
[400592208,1767736246569,-650.0,0.00030137,5]
[400592211,1767736246579,-151.0,0.00030137,31]
[400592212,1767736246588,-178.486087,0.00030137,31]
[400592214,1767736246598,-151.0,0.00030137,31]
[400592217,1767736246608,-178.486087,0.00030137,31]
[400592218,1767736246617,-245.644172,0.00030137,31]
[400592220,1767736246627,-178.486087,0.00030137,31]
[400592222,1767736246636,-178.486087,0.00030137,31]
[400592224,1767736246647,-151.0,0.00030137,28]